[Event "Titled Tuesday Blitz April 25 Early 2023"]
[White "Jaivardhan Raj"]
[Black "Bekkedahl, Zachary"]
[WhiteFideId "25744437"]
[BlackFideId "2069156"]
[WhiteElo "1772"]
[BlackElo "1943"]
[Result "0-1"]
[Round "09"]
[TimeControl "180+2"]
[Date "2023.04.25"]
[WhiteClock "0:00:18"]
[BlackClock "0:00:09"]

1. e4 {[%clk 0:02:55]}  c5 {[%clk 0:02:44]} 2. Nf3 {[%clk 0:02:54]}  g6 {[%clk 0:02:45]} 3. d4 {[%clk 0:02:53]}  cxd4 {[%clk 0:02:45]} 4. Qxd4 {[%clk 0:02:54]}  Nf6 {[%clk 0:02:45]} 5. Nc3 {[%clk 0:02:53]}  Nc6 {[%clk 0:02:46]} 6. Qa4 {[%clk 0:02:50]}  d6 {[%clk 0:02:42]} 7. e5 {[%clk 0:02:50]}  dxe5 {[%clk 0:02:43]} 8. Nxe5 {[%clk 0:02:51]}  Nd7 {[%clk 0:02:34]} 9. Nxc6 {[%clk 0:02:42]}  bxc6 {[%clk 0:02:34]} 10. Qxc6 {[%clk 0:02:40]}  Rb8 {[%clk 0:02:34]} 11. Nb5 {[%clk 0:02:15]}  Bg7 {[%clk 0:02:14]} 12. Bc4 {[%clk 0:01:40]}  O-O {[%clk 0:02:10]} 13. Bf4 {[%clk 0:01:29]}  Bb7 {[%clk 0:01:55]} 14. Qc7 {[%clk 0:01:05]}  Bxg2 {[%clk 0:01:34]} 15. Rg1 {[%clk 0:00:55]}  Bf3 {[%clk 0:01:35]} 16. Qxd8 {[%clk 0:00:26]}  Rbxd8 {[%clk 0:01:32]} 17. Rg3 {[%clk 0:00:26]}  Bc6 {[%clk 0:01:24]} 18. Nxa7 {[%clk 0:00:24]}  Be4 {[%clk 0:01:24]} 19. c3 {[%clk 0:00:19]}  e5 {[%clk 0:01:21]} 20. Be3 {[%clk 0:00:19]}  Kh8 {[%clk 0:01:19]} 21. Nb5 {[%clk 0:00:18]}  f5 {[%clk 0:01:18]} 22. Bg5 {[%clk 0:00:17]}  Rc8 {[%clk 0:01:17]} 23. Bb3 {[%clk 0:00:16]}  f4 {[%clk 0:01:16]} 24. Rg1 {[%clk 0:00:17]}  Nc5 {[%clk 0:01:14]} 25. Nd6 {[%clk 0:00:16]}  Rc6 {[%clk 0:00:53]} 26. Nf7+ {[%clk 0:00:16]}  Kg8 {[%clk 0:00:43]} 27. Nxe5+ {[%clk 0:00:15]}  Nxb3 {[%clk 0:00:43]} 28. Nxc6 {[%clk 0:00:12]}  Nxa1 {[%clk 0:00:43]} 29. Ne7+ {[%clk 0:00:11]}  Kf7 {[%clk 0:00:41]} 30. Kd2 {[%clk 0:00:11]}  Rd8+ {[%clk 0:00:34]} 31. Ke2 {[%clk 0:00:10]}  Nc2 {[%clk 0:00:17]} 32. f3 {[%clk 0:00:08]}  Bb7 {[%clk 0:00:14]} 33. Nxg6 {[%clk 0:00:07]}  Re8+ {[%clk 0:00:13]} 34. Ne5+ {[%clk 0:00:07]}  Bxe5 {[%clk 0:00:12]} 35. Kf2 {[%clk 0:00:08]}  Bc7 {[%clk 0:00:12]} 36. Rd1 {[%clk 0:00:08]}  Bb6+ {[%clk 0:00:12]} 37. Kg2 {[%clk 0:00:08]}  Re2+ {[%clk 0:00:11]} 38. Kh3 {[%clk 0:00:09]}  Bc8+ {[%clk 0:00:10]} 39. Kh4 {[%clk 0:00:08]}  Ne3 {[%clk 0:00:10]} 40. Rh1 {[%clk 0:00:06]}  Nf5+ {[%clk 0:00:08]} 41. Kh5 {[%clk 0:00:06]}  Bf2 {[%clk 0:00:07]} 42. h4 {[%clk 0:00:07]}  Re6 {[%clk 0:00:06]} 43. Rd1 {[%clk 0:00:07]}  h6 {[%clk 0:00:06]} 44. Rd8 {[%clk 0:00:08]}  hxg5 {[%clk 0:00:07]} 45. Rh8 {[%clk 0:00:09]}  gxh4 {[%clk 0:00:06]} 46. Rh7+ {[%clk 0:00:10]}  Kf6 {[%clk 0:00:05]} 47. Rf7+ {[%clk 0:00:10]}  Ke5 {[%clk 0:00:06]} 48. Kg4 {[%clk 0:00:11]}  h3 {[%clk 0:00:07]} 49. Kxh3 {[%clk 0:00:12]}  Bg3 {[%clk 0:00:07]} 50. Kg2 {[%clk 0:00:13]}  Rh6 {[%clk 0:00:07]} 51. Kf1 {[%clk 0:00:14]}  Rh2 {[%clk 0:00:08]} 52. Re7+ {[%clk 0:00:13]}  Be6 {[%clk 0:00:08]} 53. Rxe6+ {[%clk 0:00:13]}  Kxe6 {[%clk 0:00:09]} 54. c4 {[%clk 0:00:14]}  Ke5 {[%clk 0:00:09]} 55. c5 {[%clk 0:00:14]}  Kd5 {[%clk 0:00:10]} 56. c6 {[%clk 0:00:15]}  Kxc6 {[%clk 0:00:10]} 57. b4 {[%clk 0:00:15]}  Kb5 {[%clk 0:00:10]} 58. a4+ {[%clk 0:00:16]}  Kxa4 {[%clk 0:00:10]} 59. b5 {[%clk 0:00:16]}  Ne3+ {[%clk 0:00:10]} 60. Kg1 {[%clk 0:00:15]}  Rg2+ {[%clk 0:00:10]} 61. Kh1 {[%clk 0:00:15]}  Rf2 {[%clk 0:00:08]} 62. b6 {[%clk 0:00:15]}  Nf1 {[%clk 0:00:06]} 63. b7 {[%clk 0:00:14]}  Rb2 {[%clk 0:00:05]} 64. b8=Q {[%clk 0:00:14]}  Rxb8 {[%clk 0:00:05]} 65. Kg1 {[%clk 0:00:14]}  Rb2 {[%clk 0:00:05]} 66. Kh1 {[%clk 0:00:14]}  Ne3 {[%clk 0:00:04]} 67. Kg1 {[%clk 0:00:14]}  Kb3 {[%clk 0:00:05]} 68. Kh1 {[%clk 0:00:15]}  Kc3 {[%clk 0:00:06]} 69. Kg1 {[%clk 0:00:15]}  Kd3 {[%clk 0:00:06]} 70. Kh1 {[%clk 0:00:16]}  Nd5 {[%clk 0:00:07]} 71. Kg1 {[%clk 0:00:17]}  Ke3 {[%clk 0:00:08]} 72. Kh1 {[%clk 0:00:17]}  Kxf3 {[%clk 0:00:08]} 73. Kg1 {[%clk 0:00:18]}  Rb1# {[%clk 0:00:09]} 0-1


[Site "https://www.chess.com"]

[Event "Titled Tuesday Blitz April 25 Early 2023"]
[White "Dzhaparov, Medet"]
[Black "Necula, Iulian"]
[WhiteFideId "13803689"]
[BlackFideId "1232380"]
[WhiteElo "1690"]
[BlackElo "1790"]
[Result "0-1"]
[Round "09"]
[TimeControl "180+2"]
[Date "2023.04.25"]
[WhiteClock "0:00:24"]
[BlackClock "0:01:08"]

1. e4 {[%clk 0:01:43]}  d6 {[%clk 0:03:00]} 2. d4 {[%clk 0:01:42]}  Nf6 {[%clk 0:03:01]} 3. Nc3 {[%clk 0:01:41]}  e5 {[%clk 0:03:02]} 4. dxe5 {[%clk 0:01:41]}  dxe5 {[%clk 0:03:01]} 5. Qxd8+ {[%clk 0:01:41]}  Kxd8 {[%clk 0:03:02]} 6. Nf3 {[%clk 0:01:35]}  Bd6 {[%clk 0:03:01]} 7. Bc4 {[%clk 0:01:32]}  Be6 {[%clk 0:03:00]} 8. Bxe6 {[%clk 0:01:32]}  fxe6 {[%clk 0:03:01]} 9. Ng5 {[%clk 0:01:33]}  Ke7 {[%clk 0:03:01]} 10. O-O {[%clk 0:01:32]}  h6 {[%clk 0:03:01]} 11. Nf3 {[%clk 0:01:31]}  Nc6 {[%clk 0:03:00]} 12. Be3 {[%clk 0:01:30]}  a6 {[%clk 0:02:59]} 13. a3 {[%clk 0:01:30]}  g5 {[%clk 0:02:54]} 14. h3 {[%clk 0:01:25]}  Rhg8 {[%clk 0:02:50]} 15. g4 {[%clk 0:01:24]}  Raf8 {[%clk 0:02:35]} 16. Nh2 {[%clk 0:01:23]}  b5 {[%clk 0:02:32]} 17. f3 {[%clk 0:01:22]}  Nd4 {[%clk 0:02:30]} 18. Bxd4 {[%clk 0:01:21]}  exd4 {[%clk 0:02:30]} 19. Ne2 {[%clk 0:01:22]}  c5 {[%clk 0:02:25]} 20. c3 {[%clk 0:01:21]}  d3 {[%clk 0:02:25]} 21. Nc1 {[%clk 0:01:16]}  c4 {[%clk 0:02:25]} 22. b3 {[%clk 0:01:15]}  Bc5+ {[%clk 0:02:23]} 23. Kg2 {[%clk 0:01:15]}  h5 {[%clk 0:02:21]} 24. bxc4 {[%clk 0:01:12]}  bxc4 {[%clk 0:02:22]} 25. Rb1 {[%clk 0:01:12]}  Rb8 {[%clk 0:02:15]} 26. Na2 {[%clk 0:01:10]}  Rb3 {[%clk 0:02:11]} 27. Rxb3 {[%clk 0:01:10]}  cxb3 {[%clk 0:02:11]} 28. Nc1 {[%clk 0:01:10]}  Bxa3 {[%clk 0:01:59]} 29. Nxb3 {[%clk 0:01:07]}  Rc8 {[%clk 0:01:49]} 30. Ra1 {[%clk 0:00:43]}  Rxc3 {[%clk 0:01:34]} 31. Rxa3 {[%clk 0:00:42]}  d2 {[%clk 0:01:35]} 32. Ra1 {[%clk 0:00:40]}  Rxb3 {[%clk 0:01:34]} 33. Rd1 {[%clk 0:00:39]}  Rb2 {[%clk 0:01:21]} 34. Kf2 {[%clk 0:00:38]}  hxg4 {[%clk 0:01:19]} 35. Nxg4 {[%clk 0:00:35]}  Nxg4+ {[%clk 0:01:17]} 36. hxg4 {[%clk 0:00:35]}  Kd6 {[%clk 0:01:15]} 37. Ke2 {[%clk 0:00:34]}  Kc5 {[%clk 0:01:15]} 38. Rxd2 {[%clk 0:00:34]}  Rxd2+ {[%clk 0:01:15]} 39. Kxd2 {[%clk 0:00:34]}  Kd4 {[%clk 0:01:14]} 40. f4 {[%clk 0:00:29]}  gxf4 {[%clk 0:01:11]} 41. g5 {[%clk 0:00:27]}  Ke5 {[%clk 0:01:10]} 42. Kc3 {[%clk 0:00:24]}  a5 {[%clk 0:01:08]} 0-1


[Site "https://www.chess.com"]

[Event "Titled Tuesday Blitz April 25 Early 2023"]
[White "Castillo Pena, Patricia Evarista"]
[Black "Singh, Arvinder Preet"]
[WhiteFideId "6412106"]
[BlackFideId "5013240"]
[WhiteElo "1919"]
[BlackElo "2124"]
[Result "0-1"]
[Round "09"]
[TimeControl "180+2"]
[Date "2023.04.25"]
[WhiteClock "0:00:04"]
[BlackClock "0:00:34"]

1. d4 {[%clk 0:02:59]}  f5 {[%clk 0:02:58]} 2. Nf3 {[%clk 0:02:57]}  Nf6 {[%clk 0:02:58]} 3. e3 {[%clk 0:02:56]}  g6 {[%clk 0:02:59]} 4. Bd3 {[%clk 0:02:56]}  Bg7 {[%clk 0:02:59]} 5. O-O {[%clk 0:02:57]}  O-O {[%clk 0:02:59]} 6. b3 {[%clk 0:02:57]}  c5 {[%clk 0:02:58]} 7. Bb2 {[%clk 0:02:57]}  Nc6 {[%clk 0:02:58]} 8. Nbd2 {[%clk 0:02:56]}  Nb4 {[%clk 0:02:56]} 9. Bc4+ {[%clk 0:02:53]}  d5 {[%clk 0:02:56]} 10. Be2 {[%clk 0:02:53]}  Ne4 {[%clk 0:02:55]} 11. Ne5 {[%clk 0:02:52]}  cxd4 {[%clk 0:02:40]} 12. exd4 {[%clk 0:02:51]}  Nc6 {[%clk 0:02:33]} 13. c4 {[%clk 0:02:40]}  Nxe5 {[%clk 0:02:30]} 14. dxe5 {[%clk 0:02:34]}  e6 {[%clk 0:02:21]} 15. Bf3 {[%clk 0:02:26]}  Nxd2 {[%clk 0:02:10]} 16. Qxd2 {[%clk 0:02:26]}  dxc4 {[%clk 0:02:10]} 17. Qxd8 {[%clk 0:02:21]}  Rxd8 {[%clk 0:02:11]} 18. bxc4 {[%clk 0:02:22]}  Rb8 {[%clk 0:02:09]} 19. Bc3 {[%clk 0:02:13]}  Bd7 {[%clk 0:02:09]} 20. Rab1 {[%clk 0:02:12]}  b6 {[%clk 0:02:07]} 21. Rfd1 {[%clk 0:02:11]}  Rbc8 {[%clk 0:02:04]} 22. Be2 {[%clk 0:02:04]}  Ba4 {[%clk 0:02:01]} 23. Rxd8+ {[%clk 0:02:03]}  Rxd8 {[%clk 0:02:01]} 24. Kf1 {[%clk 0:01:56]}  Kf7 {[%clk 0:01:41]} 25. f4 {[%clk 0:01:55]}  Bh6 {[%clk 0:01:40]} 26. g3 {[%clk 0:01:54]}  g5 {[%clk 0:01:40]} 27. fxg5 {[%clk 0:01:50]}  Bxg5 {[%clk 0:01:40]} 28. Bh5+ {[%clk 0:01:47]}  Kg7 {[%clk 0:01:35]} 29. Ke2 {[%clk 0:01:42]}  Bc6 {[%clk 0:01:27]} 30. Rd1 {[%clk 0:01:31]}  Kh6 {[%clk 0:01:21]} 31. Rxd8 {[%clk 0:01:30]}  Bxd8 {[%clk 0:01:20]} 32. Bf3 {[%clk 0:01:31]}  Bxf3+ {[%clk 0:01:13]} 33. Kxf3 {[%clk 0:01:32]}  Bg5 {[%clk 0:01:12]} 34. h4 {[%clk 0:01:29]}  Be7 {[%clk 0:01:11]} 35. Bd2+ {[%clk 0:01:22]}  Kg6 {[%clk 0:01:10]} 36. Be3 {[%clk 0:01:17]}  Kf7 {[%clk 0:01:09]} 37. Bg5 {[%clk 0:01:05]}  Bc5 {[%clk 0:01:07]} 38. g4 {[%clk 0:01:01]}  fxg4+ {[%clk 0:01:07]} 39. Kxg4 {[%clk 0:01:01]}  Bd4 {[%clk 0:01:04]} 40. Bf6 {[%clk 0:01:00]}  Be3 {[%clk 0:00:56]} 41. h5 {[%clk 0:00:58]}  Ke8 {[%clk 0:00:54]} 42. Kf3 {[%clk 0:00:56]}  Bc1 {[%clk 0:00:53]} 43. Ke4 {[%clk 0:00:55]}  Kd7 {[%clk 0:00:53]} 44. Kd4 {[%clk 0:00:52]}  Kc6 {[%clk 0:00:53]} 45. Be7 {[%clk 0:00:46]}  Bb2+ {[%clk 0:00:52]} 46. Ke4 {[%clk 0:00:46]}  a6 {[%clk 0:00:51]} 47. a4 {[%clk 0:00:40]}  Bc1 {[%clk 0:00:47]} 48. Kd4 {[%clk 0:00:37]}  Bf4 {[%clk 0:00:46]} 49. Ke4 {[%clk 0:00:36]}  Bg3 {[%clk 0:00:46]} 50. Kd4 {[%clk 0:00:31]}  Bf2+ {[%clk 0:00:46]} 51. Ke4 {[%clk 0:00:30]}  Bc5 {[%clk 0:00:46]} 52. Bd8 {[%clk 0:00:26]}  Bf8 {[%clk 0:00:45]} 53. Kd4 {[%clk 0:00:20]}  Ba3 {[%clk 0:00:41]} 54. Ke4 {[%clk 0:00:16]}  Bc1 {[%clk 0:00:38]} 55. Kd4 {[%clk 0:00:15]}  Bb2+ {[%clk 0:00:37]} 56. Ke4 {[%clk 0:00:15]}  Kc5 {[%clk 0:00:38]} 57. Kd3 {[%clk 0:00:14]}  Bxe5 {[%clk 0:00:37]} 58. Ke4 {[%clk 0:00:08]}  Bh2 {[%clk 0:00:37]} 59. Kf3 {[%clk 0:00:06]}  Bg1 {[%clk 0:00:34]} 60. Ke4 {[%clk 0:00:04]}  Kxc4 {[%clk 0:00:34]} 0-1


[Site "https://www.chess.com"]

[Event "Titled Tuesday Blitz April 25 Early 2023"]
[White "Lach, Aleksandra"]
[Black "Amitpal, Singh"]
[WhiteFideId "1134299"]
[BlackFideId "5012899"]
[WhiteElo "2111"]
[BlackElo "2107"]
[Result "1-0"]
[Round "09"]
[TimeControl "180+2"]
[Date "2023.04.25"]
[WhiteClock "0:00:24"]
[BlackClock "0:00:49"]

1. e4 {[%clk 0:03:00]}  e5 {[%clk 0:02:56]} 2. Nc3 {[%clk 0:02:55]}  Nf6 {[%clk 0:02:52]} 3. f4 {[%clk 0:02:51]}  exf4 {[%clk 0:02:49]} 4. e5 {[%clk 0:02:35]}  Ng8 {[%clk 0:02:39]} 5. d4 {[%clk 0:02:34]}  Qh4+ {[%clk 0:02:38]} 6. Kd2 {[%clk 0:02:29]}  f3 {[%clk 0:02:33]} 7. Nxf3 {[%clk 0:02:26]}  Qd8 {[%clk 0:02:28]} 8. Ke1 {[%clk 0:02:19]}  Bb4 {[%clk 0:02:26]} 9. Bd2 {[%clk 0:02:16]}  d6 {[%clk 0:02:25]} 10. Bc4 {[%clk 0:02:12]}  dxe5 {[%clk 0:02:20]} 11. dxe5 {[%clk 0:02:07]}  Bxc3 {[%clk 0:02:17]} 12. Bxc3 {[%clk 0:02:06]}  Qxd1+ {[%clk 0:02:16]} 13. Rxd1 {[%clk 0:02:07]}  Bg4 {[%clk 0:02:14]} 14. Rf1 {[%clk 0:01:53]}  Nc6 {[%clk 0:02:12]} 15. h3 {[%clk 0:01:27]}  Bxf3 {[%clk 0:02:10]} 16. Rxf3 {[%clk 0:01:28]}  f6 {[%clk 0:02:04]} 17. Bxg8 {[%clk 0:01:08]}  Rxg8 {[%clk 0:02:02]} 18. exf6 {[%clk 0:01:09]}  gxf6 {[%clk 0:02:01]} 19. Kf2 {[%clk 0:01:08]}  Rd8 {[%clk 0:01:56]} 20. Re1+ {[%clk 0:01:07]}  Ne7 {[%clk 0:01:49]} 21. Bxf6 {[%clk 0:01:01]}  Rd7 {[%clk 0:01:49]} 22. g4 {[%clk 0:00:49]}  Kf7 {[%clk 0:01:49]} 23. Bxe7+ {[%clk 0:00:49]}  Kg6 {[%clk 0:01:48]} 24. Re6+ {[%clk 0:00:43]}  Kg7 {[%clk 0:01:41]} 25. Bf6+ {[%clk 0:00:43]}  Kf7 {[%clk 0:01:39]} 26. Re2 {[%clk 0:00:43]}  Rg6 {[%clk 0:01:33]} 27. g5 {[%clk 0:00:34]}  Kg8 {[%clk 0:01:26]} 28. h4 {[%clk 0:00:32]}  h6 {[%clk 0:01:25]} 29. h5 {[%clk 0:00:32]}  Rgg7 {[%clk 0:01:17]} 30. Bxg7 {[%clk 0:00:28]}  Kxg7 {[%clk 0:01:15]} 31. gxh6+ {[%clk 0:00:27]}  Kxh6 {[%clk 0:01:15]} 32. Rf5 {[%clk 0:00:27]}  Kh7 {[%clk 0:01:09]} 33. Re6 {[%clk 0:00:27]}  Rg7 {[%clk 0:01:06]} 34. Kf3 {[%clk 0:00:27]}  Rg1 {[%clk 0:01:03]} 35. Rf7+ {[%clk 0:00:26]}  Kg8 {[%clk 0:01:01]} 36. Rxc7 {[%clk 0:00:26]}  Rf1+ {[%clk 0:00:59]} 37. Kg4 {[%clk 0:00:26]}  Rf8 {[%clk 0:00:57]} 38. Kg5 {[%clk 0:00:25]}  Kh8 {[%clk 0:00:56]} 39. Kh6 {[%clk 0:00:25]}  Rb8 {[%clk 0:00:52]} 40. Rg6 {[%clk 0:00:24]}  Rd8 {[%clk 0:00:49]} 41. Rh7# {[%clk 0:00:24]} 1-0


[Site "https://www.chess.com"]

[Event "Titled Tuesday Blitz April 25 Early 2023"]
[White "Deac, Bogdan-Daniel"]
[Black "Gupta, Abhijeet"]
[WhiteFideId "1226380"]
[BlackFideId "5010608"]
[WhiteElo "2649"]
[BlackElo "2528"]
[Result "1/2-1/2"]
[Round "10"]
[TimeControl "180+2"]
[Date "2023.04.25"]
[WhiteClock "0:00:05"]
[BlackClock "0:00:06"]

1. d4 {[%clk 0:03:00]}  Nf6 {[%clk 0:03:00]} 2. c4 {[%clk 0:03:01]}  c6 {[%clk 0:02:58]} 3. Nc3 {[%clk 0:03:01]}  d5 {[%clk 0:02:58]} 4. Nf3 {[%clk 0:02:59]}  e6 {[%clk 0:02:58]} 5. Bg5 {[%clk 0:02:59]}  Nbd7 {[%clk 0:02:55]} 6. e3 {[%clk 0:02:56]}  h6 {[%clk 0:02:54]} 7. Bh4 {[%clk 0:02:55]}  g5 {[%clk 0:02:53]} 8. Bg3 {[%clk 0:02:56]}  Nh5 {[%clk 0:02:53]} 9. Be5 {[%clk 0:02:48]}  Nhf6 {[%clk 0:02:52]} 10. cxd5 {[%clk 0:02:31]}  exd5 {[%clk 0:02:50]} 11. h3 {[%clk 0:02:30]}  Nxe5 {[%clk 0:02:48]} 12. Nxe5 {[%clk 0:02:31]}  Nd7 {[%clk 0:02:37]} 13. Nd3 {[%clk 0:02:23]}  Bg7 {[%clk 0:02:34]} 14. h4 {[%clk 0:02:06]}  Qe7 {[%clk 0:02:18]} 15. hxg5 {[%clk 0:02:03]}  hxg5 {[%clk 0:02:18]} 16. Rxh8+ {[%clk 0:02:03]}  Bxh8 {[%clk 0:02:19]} 17. Be2 {[%clk 0:01:49]}  Nf6 {[%clk 0:02:13]} 18. Qb3 {[%clk 0:01:44]}  Bf5 {[%clk 0:02:06]} 19. O-O-O {[%clk 0:01:37]}  O-O-O {[%clk 0:01:58]} 20. Nc5 {[%clk 0:01:37]}  Kb8 {[%clk 0:01:51]} 21. Bd3 {[%clk 0:01:11]}  Bc8 {[%clk 0:01:47]} 22. Qc2 {[%clk 0:01:01]}  b6 {[%clk 0:01:24]} 23. Nb3 {[%clk 0:00:54]}  Ne8 {[%clk 0:01:21]} 24. Bf5 {[%clk 0:00:48]}  Bb7 {[%clk 0:01:15]} 25. a4 {[%clk 0:00:35]}  a5 {[%clk 0:01:13]} 26. Bd3 {[%clk 0:00:32]}  Nd6 {[%clk 0:01:11]} 27. Rh1 {[%clk 0:00:32]}  Bg7 {[%clk 0:00:50]} 28. Qe2 {[%clk 0:00:29]}  f5 {[%clk 0:00:49]} 29. Rh7 {[%clk 0:00:28]}  Rh8 {[%clk 0:00:47]} 30. Rxh8+ {[%clk 0:00:26]}  Bxh8 {[%clk 0:00:48]} 31. Qh5 {[%clk 0:00:23]}  Bf6 {[%clk 0:00:46]} 32. g3 {[%clk 0:00:24]}  f4 {[%clk 0:00:44]} 33. gxf4 {[%clk 0:00:21]}  gxf4 {[%clk 0:00:44]} 34. exf4 {[%clk 0:00:14]}  Nc4 {[%clk 0:00:41]} 35. Bxc4 {[%clk 0:00:12]}  dxc4 {[%clk 0:00:42]} 36. Nd2 {[%clk 0:00:12]}  Bxd4 {[%clk 0:00:41]} 37. Nxc4 {[%clk 0:00:12]}  Qb4 {[%clk 0:00:28]} 38. Qe8+ {[%clk 0:00:03]}  Ka7 {[%clk 0:00:28]} 39. Ne5 {[%clk 0:00:02]}  Bxc3 {[%clk 0:00:22]} 40. bxc3 {[%clk 0:00:03]}  Qxf4+ {[%clk 0:00:12]} 41. Kd1 {[%clk 0:00:04]}  Qxa4+ {[%clk 0:00:11]} 42. Kd2 {[%clk 0:00:04]}  Qa2+ {[%clk 0:00:11]} 43. Ke3 {[%clk 0:00:04]}  Qd5 {[%clk 0:00:10]} 44. c4 {[%clk 0:00:04]}  Qc5+ {[%clk 0:00:09]} 45. Kd3 {[%clk 0:00:05]}  a4 {[%clk 0:00:09]} 46. f4 {[%clk 0:00:03]}  a3 {[%clk 0:00:09]} 47. Kc3 {[%clk 0:00:03]}  a2 {[%clk 0:00:09]} 48. Kb2 {[%clk 0:00:03]}  Qf2+ {[%clk 0:00:08]} 49. Ka1 {[%clk 0:00:03]}  Qc2 {[%clk 0:00:08]} 50. Qg6 {[%clk 0:00:03]}  Qc1+ {[%clk 0:00:06]} 51. Kxa2 {[%clk 0:00:04]}  Qxf4 {[%clk 0:00:07]} 52. Nxc6+ {[%clk 0:00:03]}  Bxc6 {[%clk 0:00:06]} 53. Qxc6 {[%clk 0:00:03]}  Qd2+ {[%clk 0:00:06]} 54. Kb3 {[%clk 0:00:03]}  Qd3+ {[%clk 0:00:07]} 55. Kb2 {[%clk 0:00:04]}  Qd2+ {[%clk 0:00:07]} 56. Kb3 {[%clk 0:00:04]}  Qd3+ {[%clk 0:00:06]} 57. Kb2 {[%clk 0:00:05]}  Qd2+ {[%clk 0:00:06]} 58. Kb3 {[%clk 0:00:05]} 1/2-1/2


[Site "https://www.chess.com"]

[Event "Titled Tuesday Blitz April 25 Early 2023"]
[White "Duda, Jan-Krzysztof"]
[Black "Svane, Frederik"]
[WhiteFideId "1170546"]
[BlackFideId "12923044"]
[WhiteElo "2790"]
[BlackElo "2502"]
[Result "1-0"]
[Round "10"]
[TimeControl "180+2"]
[Date "2023.04.25"]
[WhiteClock "0:00:45"]
[BlackClock "0:00:01"]

1. e4 {[%clk 0:03:00]}  e5 {[%clk 0:03:00]} 2. Nf3 {[%clk 0:03:00]}  Nc6 {[%clk 0:03:00]} 3. Bb5 {[%clk 0:03:01]}  Nf6 {[%clk 0:03:00]} 4. O-O {[%clk 0:02:59]}  Nxe4 {[%clk 0:02:59]} 5. Re1 {[%clk 0:03:00]}  Nd6 {[%clk 0:03:00]} 6. Nxe5 {[%clk 0:03:01]}  Nxe5 {[%clk 0:02:59]} 7. Rxe5+ {[%clk 0:03:02]}  Be7 {[%clk 0:03:00]} 8. Bf1 {[%clk 0:03:02]}  O-O {[%clk 0:03:00]} 9. d4 {[%clk 0:03:00]}  Bf6 {[%clk 0:03:00]} 10. Re1 {[%clk 0:03:01]}  Re8 {[%clk 0:02:59]} 11. Bf4 {[%clk 0:03:01]}  Rxe1 {[%clk 0:02:57]} 12. Qxe1 {[%clk 0:03:02]}  Ne8 {[%clk 0:02:58]} 13. c3 {[%clk 0:02:59]}  d5 {[%clk 0:02:57]} 14. Bd3 {[%clk 0:02:59]}  g6 {[%clk 0:02:54]} 15. Nd2 {[%clk 0:02:59]}  Ng7 {[%clk 0:02:54]} 16. Qe2 {[%clk 0:03:00]}  Bf5 {[%clk 0:02:48]} 17. Bxf5 {[%clk 0:02:59]}  Nxf5 {[%clk 0:02:48]} 18. Qb5 {[%clk 0:02:54]}  b6 {[%clk 0:01:58]} 19. Re1 {[%clk 0:02:47]}  Rc8 {[%clk 0:01:42]} 20. Qc6 {[%clk 0:02:46]}  Kg7 {[%clk 0:01:34]} 21. Nf3 {[%clk 0:02:40]}  h6 {[%clk 0:00:55]} 22. g4 {[%clk 0:02:27]}  Nh4 {[%clk 0:00:55]} 23. Nxh4 {[%clk 0:02:22]}  Bxh4 {[%clk 0:00:55]} 24. Re5 {[%clk 0:02:21]}  Bf6 {[%clk 0:00:05]} 25. Rxd5 {[%clk 0:02:16]}  Qe7 {[%clk 0:00:06]} 26. Rd7 {[%clk 0:01:40]}  Qe2 {[%clk 0:00:06]} 27. Rxf7+ {[%clk 0:01:04]}  Kxf7 {[%clk 0:00:07]} 28. Qd7+ {[%clk 0:01:05]}  Be7 {[%clk 0:00:07]} 29. Qxc8 {[%clk 0:01:05]}  Qe1+ {[%clk 0:00:07]} 30. Kg2 {[%clk 0:01:06]}  Qe4+ {[%clk 0:00:08]} 31. Kg3 {[%clk 0:01:07]}  Qd3+ {[%clk 0:00:04]} 32. Be3 {[%clk 0:01:06]}  Bd6+ {[%clk 0:00:04]} 33. Kf3 {[%clk 0:00:54]}  Qd1+ {[%clk 0:00:05]} 34. Kg2 {[%clk 0:00:54]}  Qb1 {[%clk 0:00:02]} 35. Qd7+ {[%clk 0:00:53]}  Kf6 {[%clk 0:00:02]} 36. Qe8 {[%clk 0:00:49]}  g5 {[%clk 0:00:01]} 37. d5 {[%clk 0:00:46]}  Qd3 {[%clk 0:00:01]} 38. Bd4+ {[%clk 0:00:46]}  Be5 {[%clk 0:00:01]} 39. Bxe5# {[%clk 0:00:45]} 1-0


[Site "https://www.chess.com"]